[Event "*** Titled Tuesday Blitz"]
[Site "Chess.com"]
[Date "2018.09.04"]
[Round "7"]
[White "SARGISMV"]
[Black "afgano29"]
[Result "0-1"]
[WhiteElo "2481"]
[BlackElo "2696"]
[TimeControl "180+2"]
[EndTime "15:08:45 PDT"]
[Termination "afgano29 won by resignation"]

1. d4 {[%clk 0:02:52.9]} 1... Nf6 {[%clk 0:02:59.8]} 2. c4 {[%clk 0:02:53.3]}
2... g6 {[%clk 0:03:00.7]} 3. Nf3 {[%clk 0:02:54.8]} 3... Bg7 {[%clk 0:03:01.2]}
4. Nc3 {[%clk 0:02:55.9]} 4... d5 {[%clk 0:03:02.5]} 5. cxd5 {[%clk 0:02:56.4]}
5... Nxd5 {[%clk 0:03:04.4]} 6. e4 {[%clk 0:02:57.7]} 6... Nxc3 {[%clk
0:03:05.9]} 7. bxc3 {[%clk 0:02:59.5]} 7... c5 {[%clk 0:03:07.1]} 8. Be3 {[%clk
0:03:01]} 8... O-O {[%clk 0:03:07.5]} 9. Rc1 {[%clk 0:03:01.7]} 9... Qa5 {[%clk
0:03:05.4]} 10. Qd2 {[%clk 0:03:02.4]} 10... Rd8 {[%clk 0:03:06.2]} 11. d5
{[%clk 0:03:03.3]} 11... e6 {[%clk 0:03:05.4]} 12. Bg5 {[%clk 0:03:04.2]} 12...
Re8 {[%clk 0:03:01.2]} 13. c4 {[%clk 0:02:54.4]} 13... Qxd2+ {[%clk 0:02:59.9]}
14. Kxd2 {[%clk 0:02:56.3]} 14... exd5 {[%clk 0:02:47.9]} 15. exd5 {[%clk
0:02:58.2]} 15... Na6 {[%clk 0:02:48]} 16. Bd3 {[%clk 0:02:49.2]} 16... Nb4
{[%clk 0:02:33.6]} 17. Bb1 {[%clk 0:02:49.6]} 17... b6 {[%clk 0:02:30.4]} 18. h3
{[%clk 0:02:38.7]} 18... h6 {[%clk 0:02:20.6]} 19. Be3 {[%clk 0:02:30.6]} 19...
Bb2 {[%clk 0:02:10.3]} 20. Rce1 {[%clk 0:02:23.5]} 20... Ba6 {[%clk 0:02:09.4]}
21. Bd3 {[%clk 0:02:08.9]} 21... Nxa2 {[%clk 0:01:49.4]} 22. Kc2 {[%clk
0:02:08.4]} 22... Bg7 {[%clk 0:01:47.8]} 23. Bd2 {[%clk 0:02:05.7]} 23... Nb4+
{[%clk 0:01:45.4]} 24. Bxb4 {[%clk 0:02:05.6]} 24... cxb4 {[%clk 0:01:47.3]} 25.
Rxe8+ {[%clk 0:02:01.8]} 25... Rxe8 {[%clk 0:01:49.2]} 26. Re1 {[%clk
0:01:52.1]} 26... Rxe1 {[%clk 0:01:45.1]} 27. Nxe1 {[%clk 0:01:54]} 27... Bc8
{[%clk 0:01:32.4]} 28. Kb3 {[%clk 0:01:39.9]} 28... a5 {[%clk 0:01:27.9]} 29.
Nc2 {[%clk 0:01:40.6]} 29... Bd7 {[%clk 0:01:17.2]} 30. Nxb4 {[%clk 0:01:30.4]}
30... axb4 {[%clk 0:01:17.4]} 31. Kxb4 {[%clk 0:01:32.3]} 31... Bf8+ {[%clk
0:01:18.4]} 32. Kc3 {[%clk 0:01:32.8]} 32... Bc5 {[%clk 0:01:19.8]} 33. f3
{[%clk 0:01:34]} 33... Kf8 {[%clk 0:01:20.9]} 34. g4 {[%clk 0:01:35.9]} 34... g5
{[%clk 0:01:20.5]} 35. Be4 {[%clk 0:01:33]} 35... Ke7 {[%clk 0:01:21.6]} 36. Kd3
{[%clk 0:01:29.7]} 36... Kd6 {[%clk 0:01:23.5]} 37. Bh7 {[%clk 0:01:28.8]} 37...
Ke5 {[%clk 0:01:23.5]} 38. Bg8 {[%clk 0:01:30.7]} 38... f5 {[%clk 0:01:24.2]}
39. Bh7 {[%clk 0:01:29.3]} 39... f4 {[%clk 0:01:23.8]} 40. Be4 {[%clk
0:01:22.7]} 40... b5 {[%clk 0:01:24.8]} 41. cxb5 {[%clk 0:01:16.3]} 41... Bxb5+
{[%clk 0:01:26.7]} 42. Kc3 {[%clk 0:01:18]} 42... Bf1 {[%clk 0:01:28.3]} 43. Kb3
{[%clk 0:01:12.3]} 43... Bxh3 {[%clk 0:01:27.6]} 44. Kc4 {[%clk 0:01:13.4]}
44... Bd6 {[%clk 0:01:28.3]} 45. Bg6 {[%clk 0:01:12.2]} 45... Bg2 {[%clk
0:01:28.4]} 46. Be4 {[%clk 0:01:13.1]} 46... Bh3 {[%clk 0:01:28.8]} 47. Bg6
{[%clk 0:01:12.5]} 47... Bf1+ {[%clk 0:01:29.8]} 48. Kc3 {[%clk 0:01:11.6]}
48... Kxd5 {[%clk 0:01:30.1]} 49. Bf7+ {[%clk 0:01:09.4]} 49... Ke5 {[%clk
0:01:31]} 50. Bg6 {[%clk 0:01:09.8]} 50... Bb5 {[%clk 0:01:27.8]} 51. Kd2 {[%clk
0:01:09.1]} 51... Bc6 {[%clk 0:01:27.7]} 52. Ke2 {[%clk 0:01:09.8]} 52... Kd4
{[%clk 0:01:28.1]} 53. Kf2 {[%clk 0:01:09.8]} 53... Bc5 {[%clk 0:01:27.6]} 54.
Bf7 {[%clk 0:01:08]} 54... Kc3+ {[%clk 0:01:27.8]} 55. Ke2 {[%clk 0:01:08.2]}
55... Bb5+ {[%clk 0:01:28.6]} 56. Ke1 {[%clk 0:01:08.4]} 56... Kd3 {[%clk
0:01:27.9]} 57. Be8 {[%clk 0:01:07.7]} 57... Bxe8 {[%clk 0:01:27.8]} 0-1

[Event "*** Titled Tuesday Blitz"]
[Site "Chess.com"]
[Date "2018.09.04"]
[Round "7"]
[White "metra93"]
[Black "Abrito99"]
[Result "0-1"]
[WhiteElo "2501"]
[BlackElo "2591"]
[TimeControl "180+2"]
[EndTime "15:08:50 PDT"]
[Termination "Abrito99 won by resignation"]

1. d4 {[%clk 0:03:01.9]} 1... Nf6 {[%clk 0:02:59.5]} 2. c4 {[%clk 0:03:02.8]}
2... e6 {[%clk 0:02:58.1]} 3. Nc3 {[%clk 0:03:04]} 3... Bb4 {[%clk 0:02:58.5]}
4. e3 {[%clk 0:03:05.2]} 4... O-O {[%clk 0:02:58.8]} 5. Bd3 {[%clk 0:03:06.2]}
5... d5 {[%clk 0:02:59.4]} 6. Nf3 {[%clk 0:03:07.4]} 6... dxc4 {[%clk
0:02:58.7]} 7. Bxc4 {[%clk 0:03:08.2]} 7... c5 {[%clk 0:03:00.2]} 8. O-O {[%clk
0:03:09.2]} 8... cxd4 {[%clk 0:02:59.8]} 9. exd4 {[%clk 0:03:11.1]} 9... b6
{[%clk 0:03:00.9]} 10. Bg5 {[%clk 0:03:11.7]} 10... Bb7 {[%clk 0:02:38.3]} 11.
Re1 {[%clk 0:03:12]} 11... h6 {[%clk 0:02:37]} 12. Bf4 {[%clk 0:03:06.9]} 12...
Nc6 {[%clk 0:02:35.9]} 13. Rc1 {[%clk 0:03:06.8]} 13... Bd6 {[%clk 0:02:33.1]}
14. Ne5 {[%clk 0:02:54.9]} 14... Bb8 {[%clk 0:02:31.9]} 15. Nxc6 {[%clk
0:02:25.6]} 15... Bxc6 {[%clk 0:02:33.8]} 16. Be5 {[%clk 0:02:26.7]} 16... a6
{[%clk 0:02:30.3]} 17. Qe2 {[%clk 0:02:19.6]} 17... b5 {[%clk 0:02:28.7]} 18.
Bb3 {[%clk 0:02:20.6]} 18... Re8 {[%clk 0:02:27.7]} 19. a3 {[%clk 0:02:18.9]}
19... Nd7 {[%clk 0:02:26.1]} 20. Bxb8 {[%clk 0:02:10.8]} 20... Rxb8 {[%clk
0:02:22.5]} 21. d5 {[%clk 0:01:58.2]} 21... Nc5 {[%clk 0:02:19.4]} 22. dxc6
{[%clk 0:01:48.4]} 22... Nxb3 {[%clk 0:02:19.5]} 23. Rcd1 {[%clk 0:01:32.2]}
23... Qb6 {[%clk 0:02:19.4]} 24. Ne4 {[%clk 0:01:25.8]} 24... Red8 {[%clk
0:02:07.3]} 25. Qc2 {[%clk 0:01:13.2]} 25... Nd4 {[%clk 0:02:00.7]} 26. Qc5
{[%clk 0:01:07.6]} 26... Nxc6 {[%clk 0:01:57.3]} 27. Qxb6 {[%clk 0:00:53.9]}
27... Rxb6 {[%clk 0:01:54.4]} 28. Rxd8+ {[%clk 0:00:55.4]} 28... Nxd8 {[%clk
0:01:56.3]} 29. Rd1 {[%clk 0:00:55.3]} 29... Nb7 {[%clk 0:01:55.1]} 30. Rd7
{[%clk 0:00:53.7]} 30... f5 {[%clk 0:01:54.1]} 31. Nc3 {[%clk 0:00:50.2]} 31...
Nc5 {[%clk 0:01:50]} 32. Ra7 {[%clk 0:00:43.6]} 32... Nd3 {[%clk 0:01:47.7]} 33.
Nd1 {[%clk 0:00:25.4]} 33... Rc6 {[%clk 0:01:45.3]} 34. Kf1 {[%clk 0:00:26.4]}
34... Rc2 {[%clk 0:01:43.4]} 35. Rxa6 {[%clk 0:00:26.9]} 35... Rd2 {[%clk
0:01:43.4]} 36. Nc3 {[%clk 0:00:22.3]} 36... Rxf2+ {[%clk 0:01:42]} 37. Kg1
{[%clk 0:00:23.6]} 37... Rxb2 {[%clk 0:01:39.9]} 38. Rd6 {[%clk 0:00:20.2]}
38... Nf4 {[%clk 0:01:31.5]} 39. Rb6 {[%clk 0:00:19.7]} 39... Rxg2+ {[%clk
0:01:28.8]} 40. Kf1 {[%clk 0:00:20]} 40... Rxh2 {[%clk 0:01:28.9]} 41. Nxb5
{[%clk 0:00:21.3]} 41... g5 {[%clk 0:01:26]} 42. a4 {[%clk 0:00:22.5]} 42... g4
{[%clk 0:01:23.5]} 43. Nd4 {[%clk 0:00:21.5]} 43... g3 {[%clk 0:01:22]} 44. Nf3
{[%clk 0:00:22.6]} 44... Rf2+ {[%clk 0:01:20.4]} 45. Kg1 {[%clk 0:00:24]} 45...
Nh3+ {[%clk 0:01:17.6]} 46. Kh1 {[%clk 0:00:24.4]} 46... g2+ {[%clk 0:01:19.2]}
47. Kh2 {[%clk 0:00:25.6]} 47... g1=Q+ {[%clk 0:01:20.4]} 0-1

[Event "*** Titled Tuesday Blitz"]
[Site "Chess.com"]
[Date "2018.09.04"]
[Round "7"]
[White "Manukyan_Artak"]
[Black "JSMastropiero"]
[Result "1-0"]
[WhiteElo "2311"]
[BlackElo "2352"]
[TimeControl "180+2"]
[EndTime "15:09:03 PDT"]
[Termination "Manukyan_Artak won by resignation"]

1. e4 {[%clk 0:03:01]} 1... e5 {[%clk 0:03:00]} 2. Nf3 {[%clk 0:03:01.4]} 2...
Nc6 {[%clk 0:03:00.7]} 3. d4 {[%clk 0:03:01.7]} 3... exd4 {[%clk 0:03:00.5]} 4.
Nxd4 {[%clk 0:03:02.3]} 4... Bb4+ {[%clk 0:03:00.5]} 5. c3 {[%clk 0:03:02.4]}
5... Bc5 {[%clk 0:02:59]} 6. Nxc6 {[%clk 0:03:02.7]} 6... bxc6 {[%clk
0:02:59.6]} 7. Bc4 {[%clk 0:03:02.5]} 7... Qh4 {[%clk 0:02:55.2]} 8. Qf3 {[%clk
0:02:53.6]} 8... Qf6 {[%clk 0:02:41.2]} 9. Be3 {[%clk 0:02:43.7]} 9... Qxf3
{[%clk 0:02:33.9]} 10. gxf3 {[%clk 0:02:44.3]} 10... Bxe3 {[%clk 0:02:34.4]} 11.
fxe3 {[%clk 0:02:45.1]} 11... Ne7 {[%clk 0:02:33.6]} 12. Nd2 {[%clk 0:02:41.7]}
12... d6 {[%clk 0:02:28.4]} 13. h4 {[%clk 0:02:41.3]} 13... h5 {[%clk
0:02:27.7]} 14. O-O-O {[%clk 0:02:36.8]} 14... Ng6 {[%clk 0:02:01.6]} 15. f4
{[%clk 0:02:33.3]} 15... Bg4 {[%clk 0:01:59.2]} 16. Rde1 {[%clk 0:02:27.4]}
16... Ke7 {[%clk 0:01:59.6]} 17. Be2 {[%clk 0:02:27.7]} 17... Bxe2 {[%clk
0:01:55.8]} 18. Rxe2 {[%clk 0:02:28.3]} 18... Nf8 {[%clk 0:01:44.4]} 19. Nc4
{[%clk 0:02:18.7]} 19... Nh7 {[%clk 0:01:43.9]} 20. e5 {[%clk 0:02:16.4]} 20...
d5 {[%clk 0:01:29.9]} 21. Na5 {[%clk 0:02:16.7]} 21... Kd7 {[%clk 0:01:30.1]}
22. e4 {[%clk 0:02:11.2]} 22... Nf8 {[%clk 0:01:25.8]} 23. Rd1 {[%clk
0:02:10.2]} 23... Ne6 {[%clk 0:01:23.4]} 24. exd5 {[%clk 0:02:09.6]} 24... Nxf4
{[%clk 0:01:19.3]} 25. dxc6+ {[%clk 0:02:04.2]} 25... Ke6 {[%clk 0:01:20]} 26.
Re4 {[%clk 0:02:01.5]} 26... Nd5 {[%clk 0:01:16.4]} 27. Nb7 {[%clk 0:01:55.5]}
27... Ne7 {[%clk 0:01:02.3]} 28. Nc5+ {[%clk 0:01:41.3]} 28... Kf5 {[%clk
0:01:00.4]} 29. Rf1+ {[%clk 0:01:41.6]} 29... Kg6 {[%clk 0:00:58.5]} 30. e6
{[%clk 0:01:41.1]} 30... f5 {[%clk 0:00:55]} 31. Rc4 {[%clk 0:01:37.5]} 31...
Nxc6 {[%clk 0:00:38.5]} 32. Nd7 {[%clk 0:01:35.7]} 32... Ne7 {[%clk 0:00:36.6]}
33. Rxc7 {[%clk 0:01:36]} 33... Rac8 {[%clk 0:00:37.6]} 34. Rxa7 {[%clk
0:01:32.2]} 34... Nd5 {[%clk 0:00:33.4]} 35. Ne5+ {[%clk 0:01:23]} 35... Kf6
{[%clk 0:00:34.2]} 36. Nd3 {[%clk 0:01:20.8]} 36... Kxe6 {[%clk 0:00:32.3]} 37.
Rxg7 {[%clk 0:01:17]} 37... Rhd8 {[%clk 0:00:27]} 38. Rg6+ {[%clk 0:01:16]}
38... Kf7 {[%clk 0:00:28]} 39. Ne5+ {[%clk 0:01:16]} 39... Ke8 {[%clk
0:00:25.9]} 40. Rg8+ {[%clk 0:01:10.8]} 40... Ke7 {[%clk 0:00:26.4]} 41. Rxd8
{[%clk 0:01:09.1]} 41... Kxd8 {[%clk 0:00:27]} 42. Rxf5 {[%clk 0:01:09]} 42...
Nxc3 {[%clk 0:00:16.8]} 43. Rf8+ {[%clk 0:01:01.6]} 1-0

[Event "*** Titled Tuesday Blitz"]
[Site "Chess.com"]
[Date "2018.09.04"]
[Round "7"]
[White "patrisiii123"]
[Black "Vegan4future"]
[Result "1-0"]
[WhiteElo "2303"]
[BlackElo "2397"]
[TimeControl "180+2"]
[EndTime "15:09:16 PDT"]
[Termination "patrisiii123 won by resignation"]

1. e4 {[%clk 0:03:01.9]} 1... e5 {[%clk 0:02:56.7]} 2. Nf3 {[%clk 0:03:03.2]}
2... Nc6 {[%clk 0:02:57.5]} 3. Bc4 {[%clk 0:03:02.1]} 3... Bc5 {[%clk
0:02:52.6]} 4. c3 {[%clk 0:03:02.6]} 4... Nf6 {[%clk 0:02:46.3]} 5. b4 {[%clk
0:03:01.1]} 5... Bb6 {[%clk 0:02:46.8]} 6. d3 {[%clk 0:03:01.2]} 6... O-O {[%clk
0:02:46.5]} 7. a4 {[%clk 0:03:01.7]} 7... a6 {[%clk 0:02:38.1]} 8. b5 {[%clk
0:03:03.1]} 8... axb5 {[%clk 0:02:39.1]} 9. Bxb5 {[%clk 0:03:04.6]} 9... d6
{[%clk 0:02:39.3]} 10. Bxc6 {[%clk 0:02:17.7]} 10... bxc6 {[%clk 0:02:41.2]} 11.
Nbd2 {[%clk 0:02:15.9]} 11... Bg4 {[%clk 0:02:33.6]} 12. O-O {[%clk 0:02:12.3]}
12... Ba5 {[%clk 0:02:27.1]} 13. Bb2 {[%clk 0:02:09.8]} 13... Qd7 {[%clk
0:02:25.3]} 14. Nc4 {[%clk 0:01:59.9]} 14... Rfb8 {[%clk 0:02:12.9]} 15. Rb1
{[%clk 0:02:00.6]} 15... Bb6 {[%clk 0:02:02.7]} 16. Re1 {[%clk 0:01:51.3]} 16...
Bxf3 {[%clk 0:01:51]} 17. Qxf3 {[%clk 0:01:48.2]} 17... Rxa4 {[%clk 0:01:51.6]}
18. Ra1 {[%clk 0:01:31]} 18... Rba8 {[%clk 0:01:48.9]} 19. Rxa4 {[%clk
0:01:27.3]} 19... Rxa4 {[%clk 0:01:50.8]} 20. Rb1 {[%clk 0:01:24.6]} 20... Qg4
{[%clk 0:01:41]} 21. Qxg4 {[%clk 0:01:16.1]} 21... Nxg4 {[%clk 0:01:42.9]} 22.
h3 {[%clk 0:01:07.8]} 22... Rxc4 {[%clk 0:01:16.3]} 23. dxc4 {[%clk 0:01:02.3]}
23... Nxf2 {[%clk 0:01:17.2]} 24. c5 {[%clk 0:00:39]} 24... Bxc5 {[%clk
0:01:15]} 25. Ba3 {[%clk 0:00:39.3]} 25... Bb6 {[%clk 0:00:30]} 26. Rxb6 {[%clk
0:00:39]} 26... cxb6 {[%clk 0:00:31.9]} 27. Kxf2 {[%clk 0:00:39.1]} 27... c5
{[%clk 0:00:33.4]} 28. Ke3 {[%clk 0:00:38.9]} 28... f6 {[%clk 0:00:34.7]} 29.
Kd3 {[%clk 0:00:39.9]} 29... Kf7 {[%clk 0:00:35.7]} 30. Kc4 {[%clk 0:00:41.2]}
30... Ke6 {[%clk 0:00:37.6]} 31. Kb5 {[%clk 0:00:42.5]} 31... f5 {[%clk
0:00:37.8]} 32. exf5+ {[%clk 0:00:42.7]} 32... Kxf5 {[%clk 0:00:39.7]} 33. Kxb6
{[%clk 0:00:44.2]} 33... e4 {[%clk 0:00:40.8]} 34. Bc1 {[%clk 0:00:44]} 34...
Ke5 {[%clk 0:00:40.1]} 35. Kc6 {[%clk 0:00:43.1]} 35... h6 {[%clk 0:00:40.4]}
36. Be3 {[%clk 0:00:40.2]} 36... g5 {[%clk 0:00:37.1]} 37. Kd7 {[%clk
0:00:40.4]} 37... Kd5 {[%clk 0:00:30.7]} 38. Ke7 {[%clk 0:00:37.4]} 38... Ke5
{[%clk 0:00:31.8]} 39. c4 {[%clk 0:00:35.2]} 39... d5 {[%clk 0:00:30.4]} 40.
cxd5 {[%clk 0:00:34.1]} 40... Kxd5 {[%clk 0:00:32.3]} 41. Kf6 {[%clk 0:00:34.9]}
41... Kc4 {[%clk 0:00:32.9]} 42. Kf5 {[%clk 0:00:35.1]} 42... Kd5 {[%clk
0:00:32.2]} 43. Kg6 {[%clk 0:00:34.5]} 43... c4 {[%clk 0:00:33.7]} 44. Kxh6
{[%clk 0:00:35.7]} 44... c3 {[%clk 0:00:35.2]} 45. Kxg5 {[%clk 0:00:36.9]} 45...
Kc4 {[%clk 0:00:35.3]} 46. Kf4 {[%clk 0:00:37.8]} 46... Kd3 {[%clk 0:00:37.2]}
47. h4 {[%clk 0:00:39.1]} 47... c2 {[%clk 0:00:39.1]} 48. h5 {[%clk 0:00:40]}
1-0

[Event "*** Titled Tuesday Blitz"]
[Site "Chess.com"]
[Date "2018.09.04"]
[Round "7"]
[White "Supernotar"]
[Black "timator"]
[Result "0-1"]
[WhiteElo "2443"]
[BlackElo "2415"]
[TimeControl "180+2"]
[EndTime "15:09:24 PDT"]
[Termination "timator won by resignation"]

1. d4 {[%clk 0:03:00.2]} 1... Nf6 {[%clk 0:03:00.5]} 2. c4 {[%clk 0:03:00.8]}
2... e6 {[%clk 0:03:01.4]} 3. Nf3 {[%clk 0:03:01]} 3... b6 {[%clk 0:03:02.3]} 4.
g3 {[%clk 0:03:01.1]} 4... Ba6 {[%clk 0:03:03.4]} 5. b3 {[%clk 0:02:58.2]} 5...
Bb4+ {[%clk 0:03:04.8]} 6. Bd2 {[%clk 0:02:59.2]} 6... Be7 {[%clk 0:03:05.5]} 7.
Bg2 {[%clk 0:03:00.5]} 7... O-O {[%clk 0:03:06.3]} 8. O-O {[%clk 0:02:58.3]}
8... c6 {[%clk 0:03:07.5]} 9. Nc3 {[%clk 0:02:58]} 9... d5 {[%clk 0:03:07.4]}
10. Ne5 {[%clk 0:02:57.8]} 10... Nfd7 {[%clk 0:03:07.5]} 11. Nxd7 {[%clk
0:02:56.5]} 11... Nxd7 {[%clk 0:03:08.1]} 12. cxd5 {[%clk 0:02:57.7]} 12... cxd5
{[%clk 0:03:09.1]} 13. Bf4 {[%clk 0:02:58.2]} 13... Rc8 {[%clk 0:03:09.3]} 14.
Rc1 {[%clk 0:02:56.6]} 14... Nf6 {[%clk 0:03:03.9]} 15. Qd2 {[%clk 0:02:40.2]}
15... Qd7 {[%clk 0:03:02.5]} 16. Nb1 {[%clk 0:02:35.9]} 16... Qb5 {[%clk
0:02:55.8]} 17. Bf3 {[%clk 0:02:32.3]} 17... Bb4 {[%clk 0:02:53.3]} 18. Qb2
{[%clk 0:02:32.2]} 18... Qd7 {[%clk 0:02:44.2]} 19. Rxc8 {[%clk 0:02:31.3]}
19... Rxc8 {[%clk 0:02:44.4]} 20. Rc1 {[%clk 0:02:33.2]} 20... h6 {[%clk
0:02:42.5]} 21. Bd2 {[%clk 0:02:29.8]} 21... Bd6 {[%clk 0:02:39.8]} 22. Rxc8+
{[%clk 0:02:25.2]} 22... Qxc8 {[%clk 0:02:40.6]} 23. Qc3 {[%clk 0:02:25]} 23...
Qxc3 {[%clk 0:02:40.3]} 24. Bxc3 {[%clk 0:02:26.3]} 24... Kf8 {[%clk 0:02:38.4]}
25. Nd2 {[%clk 0:02:26.2]} 25... Ke7 {[%clk 0:02:39.4]} 26. Kf1 {[%clk
0:02:24.1]} 26... Kd7 {[%clk 0:02:30.5]} 27. Ke1 {[%clk 0:02:25.2]} 27... Kc7
{[%clk 0:02:31.8]} 28. e3 {[%clk 0:02:26.2]} 28... Nd7 {[%clk 0:02:27.9]} 29.
Be2 {[%clk 0:02:27.2]} 29... Bxe2 {[%clk 0:02:29]} 30. Kxe2 {[%clk 0:02:29]}
30... b5 {[%clk 0:02:30.6]} 31. Kd3 {[%clk 0:02:23.7]} 31... Kb6 {[%clk
0:02:28.7]} 32. f3 {[%clk 0:02:24.3]} 32... Kc6 {[%clk 0:02:26.4]} 33. e4 {[%clk
0:02:25.1]} 33... Nb6 {[%clk 0:02:19]} 34. e5 {[%clk 0:02:22.8]} 34... Be7
{[%clk 0:02:19.5]} 35. f4 {[%clk 0:02:23.7]} 35... b4 {[%clk 0:02:19.8]} 36. Bb2
{[%clk 0:02:24.1]} 36... a5 {[%clk 0:02:21.2]} 37. g4 {[%clk 0:02:24.9]} 37...
Nd7 {[%clk 0:02:05.1]} 38. Nf3 {[%clk 0:02:25.3]} 38... Nf8 {[%clk 0:01:41.2]}
39. f5 {[%clk 0:02:24.3]} 39... Kd7 {[%clk 0:01:42.3]} 40. h4 {[%clk 0:02:24.9]}
40... h5 {[%clk 0:01:40.3]} 41. gxh5 {[%clk 0:02:10.5]} 41... exf5 {[%clk
0:01:39.2]} 42. Bc1 {[%clk 0:02:12]} 42... Ne6 {[%clk 0:01:38.8]} 43. Ng5 {[%clk
0:02:07]} 43... Bxg5 {[%clk 0:01:08.6]} 44. hxg5 {[%clk 0:02:07.7]} 44... Ke8
{[%clk 0:01:09.4]} 45. Be3 {[%clk 0:01:34.7]} 45... g6 {[%clk 0:01:06.7]} 46. h6
{[%clk 0:01:32.9]} 46... Kf8 {[%clk 0:01:08]} 47. Ke2 {[%clk 0:01:32.4]} 47...
f4 {[%clk 0:01:08.1]} 48. Bf2 {[%clk 0:01:16.5]} 48... Nxg5 {[%clk 0:01:05.3]}
49. Bh4 {[%clk 0:01:15]} 49... Ne6 {[%clk 0:01:05.9]} 50. Bf6 {[%clk 0:01:15.1]}
50... Kg8 {[%clk 0:01:07]} 51. Kf3 {[%clk 0:01:16.5]} 51... Kh7 {[%clk 0:01:07]}
52. Be7 {[%clk 0:01:07.3]} 52... Kxh6 {[%clk 0:00:56.1]} 53. Bc5 {[%clk
0:01:08]} 53... g5 {[%clk 0:00:56.2]} 54. Bb6 {[%clk 0:01:09.1]} 54... Kg6
{[%clk 0:00:57.4]} 55. Bxa5 {[%clk 0:01:09.9]} 55... Nxd4+ {[%clk 0:00:57.9]}
56. Kg4 {[%clk 0:01:11.2]} 56... Nc6 {[%clk 0:00:56.9]} 57. Bc7 {[%clk
0:01:12.1]} 57... d4 {[%clk 0:00:58.3]} 58. Kf3 {[%clk 0:01:04.6]} 58... Kf5
{[%clk 0:00:58.9]} 59. Bd6 {[%clk 0:01:03.6]} 59... Nxe5+ {[%clk 0:00:58.7]} 0-1

[Event "*** Titled Tuesday Blitz"]
[Site "Chess.com"]
[Date "2018.09.04"]
[Round "7"]
[White "Abund"]
[Black "TrimitziosP7"]
[Result "0-1"]
[WhiteElo "2450"]
[BlackElo "2646"]
[TimeControl "180+2"]
[EndTime "15:09:26 PDT"]
[Termination "TrimitziosP7 won by resignation"]

1. d4 {[%clk 0:03:01.9]} 1... d5 {[%clk 0:02:58.9]} 2. c4 {[%clk 0:03:02.7]}
2... c6 {[%clk 0:02:59.9]} 3. Nf3 {[%clk 0:03:02.5]} 3... Nf6 {[%clk 0:03:01.2]}
4. e3 {[%clk 0:03:03.7]} 4... a6 {[%clk 0:03:02.2]} 5. Nc3 {[%clk 0:03:01.4]}
5... b5 {[%clk 0:03:03]} 6. b3 {[%clk 0:02:55]} 6... Bf5 {[%clk 0:03:04]} 7. Be2
{[%clk 0:02:43.2]} 7... e6 {[%clk 0:03:04.9]} 8. O-O {[%clk 0:02:40.6]} 8... h6
{[%clk 0:03:06]} 9. Ne5 {[%clk 0:02:38.3]} 9... Bd6 {[%clk 0:03:05.6]} 10. f4
{[%clk 0:02:34.4]} 10... O-O {[%clk 0:03:06.7]} 11. c5 {[%clk 0:02:33]} 11...
Bc7 {[%clk 0:03:05.9]} 12. a4 {[%clk 0:02:27.5]} 12... b4 {[%clk 0:03:06.5]} 13.
Na2 {[%clk 0:02:28.3]} 13... a5 {[%clk 0:03:06.7]} 14. Bd2 {[%clk 0:02:27.1]}
14... Ne4 {[%clk 0:03:03.9]} 15. Nc1 {[%clk 0:02:25.7]} 15... f6 {[%clk
0:03:01.9]} 16. Nf3 {[%clk 0:02:24.1]} 16... Nd7 {[%clk 0:03:03]} 17. Nd3 {[%clk
0:02:23.8]} 17... Qe7 {[%clk 0:03:03.8]} 18. Nh4 {[%clk 0:01:44.6]} 18... Bh7
{[%clk 0:03:02.4]} 19. Bh5 {[%clk 0:01:43]} 19... Rfc8 {[%clk 0:02:48.5]} 20.
Ng6 {[%clk 0:01:16.5]} 20... Qd8 {[%clk 0:02:46.8]} 21. Be1 {[%clk 0:00:45]}
21... Nf8 {[%clk 0:02:44.1]} 22. Nxf8 {[%clk 0:00:34.9]} 22... Qxf8 {[%clk
0:02:46]} 23. Qg4 {[%clk 0:00:30.7]} 23... Bf5 {[%clk 0:02:44.6]} 24. Qe2 {[%clk
0:00:30.9]} 24... Qe7 {[%clk 0:02:44.4]} 25. Bf3 {[%clk 0:00:31.7]} 25... Rf8
{[%clk 0:02:43.4]} 26. g4 {[%clk 0:00:32.8]} 26... Bh7 {[%clk 0:02:43.8]} 27.
Bg3 {[%clk 0:00:32.1]} 27... Nxg3 {[%clk 0:02:41.9]} 28. hxg3 {[%clk 0:00:32.8]}
28... e5 {[%clk 0:02:43.4]} 29. Nf2 {[%clk 0:00:25]} 29... Rae8 {[%clk
0:02:40.1]} 30. Rae1 {[%clk 0:00:25]} 30... Qd7 {[%clk 0:02:13.5]} 31. Qd1
{[%clk 0:00:22.9]} 31... Re7 {[%clk 0:02:08.8]} 32. Kg2 {[%clk 0:00:20.7]} 32...
Rfe8 {[%clk 0:02:09.7]} 33. Qd2 {[%clk 0:00:20.6]} 33... Qe6 {[%clk 0:02:01.2]}
34. f5 {[%clk 0:00:09.7]} 34... Qc8 {[%clk 0:01:59.7]} 35. Bd1 {[%clk
0:00:09.7]} 35... Qb8 {[%clk 0:02:00.5]} 36. Nh1 {[%clk 0:00:08.1]} 36... exd4
{[%clk 0:01:58.1]} 37. exd4 {[%clk 0:00:08.4]} 37... Qd8 {[%clk 0:01:57.4]} 38.
Bc2 {[%clk 0:00:07.1]} 38... Kf7 {[%clk 0:01:55.2]} 39. Nf2 {[%clk 0:00:05.6]}
39... Bb8 {[%clk 0:01:55.6]} 40. Nd3 {[%clk 0:00:06.4]} 40... Qc8 {[%clk
0:01:29]} 41. Nf4 {[%clk 0:00:07.2]} 41... Bxf4 {[%clk 0:01:21]} 42. gxf4 {[%clk
0:00:08.3]} 42... h5 {[%clk 0:01:20.2]} 43. g5 {[%clk 0:00:08.3]} 43... Bxf5
{[%clk 0:01:20.6]} 44. g6+ {[%clk 0:00:05.7]} 44... Kxg6 {[%clk 0:01:18.8]} 45.
Bxf5+ {[%clk 0:00:04.2]} 45... Qxf5 {[%clk 0:01:20.7]} 46. Rxe7 {[%clk
0:00:03.5]} 46... Rxe7 {[%clk 0:01:22.6]} 47. Rf3 {[%clk 0:00:04.9]} 47... Kf7
{[%clk 0:01:19.7]} 48. Kf2 {[%clk 0:00:05.7]} 48... Qg4 {[%clk 0:01:17.3]} 49.
Rg3 {[%clk 0:00:06.4]} 49... Qf5 {[%clk 0:01:15]} 50. Re3 {[%clk 0:00:06.3]}
50... Qxf4+ {[%clk 0:01:11]} 0-1